[Event "Titled Tuesday Blitz February 15 Early 2022"]
[White "Prohorov, Olexandr"]
[Black "Vifleemskaia, Svetlana"]
[WhiteFideId "14105578"]
[BlackFideId "4129490"]
[WhiteElo "1993"]
[BlackElo "1901"]
[Result "0-1"]
[Round "09"]
[TimeControl "180+1"]
[Date "2022.02.15"]
[WhiteClock "0:01:40"]
[BlackClock "0:01:32"]

1. Nf3 {[%clk 0:02:59]}  Nf6 {[%clk 0:02:33]} 2. c4 {[%clk 0:02:56]}  c5 {[%clk 0:02:32]} 3. Nc3 {[%clk 0:02:54]}  d5 {[%clk 0:02:31]} 4. cxd5 {[%clk 0:02:53]}  Nxd5 {[%clk 0:02:30]} 5. e4 {[%clk 0:02:53]}  Nxc3 {[%clk 0:02:29]} 6. dxc3 {[%clk 0:02:51]}  Qxd1+ {[%clk 0:02:28]} 7. Kxd1 {[%clk 0:02:52]}  Nc6 {[%clk 0:02:28]} 8. Bc4 {[%clk 0:02:51]}  e6 {[%clk 0:02:25]} 9. Bf4 {[%clk 0:02:44]}  f6 {[%clk 0:02:20]} 10. Kc2 {[%clk 0:02:42]}  e5 {[%clk 0:02:19]} 11. Be3 {[%clk 0:02:42]}  Bd7 {[%clk 0:02:15]} 12. a4 {[%clk 0:02:33]}  O-O-O {[%clk 0:02:11]} 13. Nd2 {[%clk 0:02:20]}  Bd6 {[%clk 0:02:04]} 14. Rhd1 {[%clk 0:02:08]}  Na5 {[%clk 0:01:43]} 15. Bd5 {[%clk 0:02:03]}  Bc6 {[%clk 0:01:33]} 16. Be6+ {[%clk 0:01:40]}  Bd7 {[%clk 0:01:33]} 17. f3 {[%clk 0:01:40]}  Bxe6 {[%clk 0:01:32]} 0-1


[Site "https://www.chess.com"]

[Event "Titled Tuesday Blitz February 15 Early 2022"]
[White "Rakhimgaliyev, Yerlan"]
[Black "Williams, Simon K"]
[WhiteFideId "13705148"]
[BlackFideId "404454"]
[WhiteElo "2261"]
[BlackElo "2468"]
[Result "0-1"]
[Round "09"]
[TimeControl "180+1"]
[Date "2022.02.15"]
[WhiteClock "0:01:26"]
[BlackClock "0:00:54"]

1. e4 {[%clk 0:03:00]}  d6 {[%clk 0:02:59]} 2. d4 {[%clk 0:03:00]}  Nf6 {[%clk 0:02:59]} 3. Nc3 {[%clk 0:03:00]}  Nbd7 {[%clk 0:02:58]} 4. Bg5 {[%clk 0:02:59]}  e5 {[%clk 0:02:55]} 5. dxe5 {[%clk 0:03:00]}  dxe5 {[%clk 0:02:54]} 6. Bc4 {[%clk 0:02:59]}  c6 {[%clk 0:02:53]} 7. f4 {[%clk 0:02:59]}  h6 {[%clk 0:02:48]} 8. Bh4 {[%clk 0:02:59]}  exf4 {[%clk 0:02:46]} 9. Nf3 {[%clk 0:02:54]}  g5 {[%clk 0:02:43]} 10. Nxg5 {[%clk 0:02:47]}  hxg5 {[%clk 0:02:41]} 11. Bxg5 {[%clk 0:02:48]}  Qa5 {[%clk 0:02:34]} 12. Bxf4 {[%clk 0:02:48]}  Ne5 {[%clk 0:02:26]} 13. Bb3 {[%clk 0:02:48]}  Bg4 {[%clk 0:02:23]} 14. Qd4 {[%clk 0:02:47]}  Nfd7 {[%clk 0:02:15]} 15. Bxe5 {[%clk 0:02:17]}  Nxe5 {[%clk 0:02:05]} 16. Bd5 {[%clk 0:02:17]}  Bg7 {[%clk 0:01:59]} 17. Bxf7+ {[%clk 0:01:59]}  Kxf7 {[%clk 0:01:50]} 18. O-O+ {[%clk 0:01:59]}  Kg8 {[%clk 0:01:42]} 19. Kh1 {[%clk 0:01:35]}  Qc7 {[%clk 0:01:31]} 20. h3 {[%clk 0:01:30]}  Bxh3 {[%clk 0:00:59]} 21. gxh3 {[%clk 0:01:31]}  Rxh3+ {[%clk 0:00:59]} 22. Kg2 {[%clk 0:01:32]}  Rh2+ {[%clk 0:00:56]} 23. Kxh2 {[%clk 0:01:26]}  Nf3+ {[%clk 0:00:56]} 24. Kg2 {[%clk 0:01:26]}  Nxd4 {[%clk 0:00:54]} 0-1


[Site "https://www.chess.com"]

[Event "Titled Tuesday Blitz February 15 Early 2022"]
[White "Samadov, Read"]
[Black "Dobrov, Vladimir"]
[WhiteFideId "13417444"]
[BlackFideId "4136594"]
[WhiteElo "2084"]
[BlackElo "2614"]
[Result "1-0"]
[Round "09"]
[TimeControl "180+1"]
[Date "2022.02.15"]
[WhiteClock "0:00:05"]
[BlackClock "0:00:01"]

1. d4 {[%clk 0:03:00]}  Nf6 {[%clk 0:02:59]} 2. c4 {[%clk 0:03:01]}  e6 {[%clk 0:02:59]} 3. Nf3 {[%clk 0:03:01]}  d5 {[%clk 0:02:59]} 4. g3 {[%clk 0:03:01]}  Bb4+ {[%clk 0:02:58]} 5. Bd2 {[%clk 0:03:00]}  Be7 {[%clk 0:02:58]} 6. Bg2 {[%clk 0:02:59]}  O-O {[%clk 0:02:59]} 7. O-O {[%clk 0:02:59]}  Nbd7 {[%clk 0:02:59]} 8. Qc2 {[%clk 0:03:00]}  c6 {[%clk 0:03:00]} 9. Rd1 {[%clk 0:02:56]}  b6 {[%clk 0:03:00]} 10. Bf4 {[%clk 0:02:55]}  Nh5 {[%clk 0:02:59]} 11. Bc1 {[%clk 0:02:52]}  Ba6 {[%clk 0:02:53]} 12. b3 {[%clk 0:02:49]}  f5 {[%clk 0:02:52]} 13. Nc3 {[%clk 0:02:25]}  Rc8 {[%clk 0:02:47]} 14. Bb2 {[%clk 0:01:48]}  Bd6 {[%clk 0:02:42]} 15. Na4 {[%clk 0:01:38]}  Qe7 {[%clk 0:02:34]} 16. Ne5 {[%clk 0:01:29]}  Nhf6 {[%clk 0:01:48]} 17. Nxd7 {[%clk 0:00:42]}  Qxd7 {[%clk 0:01:41]} 18. c5 {[%clk 0:00:41]}  Bc7 {[%clk 0:01:41]} 19. Bc1 {[%clk 0:00:37]}  Qe8 {[%clk 0:01:06]} 20. Bf4 {[%clk 0:00:34]}  Bxf4 {[%clk 0:01:00]} 21. gxf4 {[%clk 0:00:35]}  Rb8 {[%clk 0:00:53]} 22. Rac1 {[%clk 0:00:31]}  b5 {[%clk 0:00:52]} 23. Nb2 {[%clk 0:00:31]}  b4 {[%clk 0:00:53]} 24. Ra1 {[%clk 0:00:30]}  Ne4 {[%clk 0:00:51]} 25. a3 {[%clk 0:00:27]}  Qh5 {[%clk 0:00:49]} 26. Re1 {[%clk 0:00:23]}  Qh4 {[%clk 0:00:49]} 27. e3 {[%clk 0:00:20]}  Rf6 {[%clk 0:00:46]} 28. f3 {[%clk 0:00:14]}  Rh6 {[%clk 0:00:36]} 29. h3 {[%clk 0:00:11]}  Qg3 {[%clk 0:00:24]} 30. fxe4 {[%clk 0:00:07]}  Rxh3 {[%clk 0:00:24]} 31. Nd3 {[%clk 0:00:05]}  fxe4 {[%clk 0:00:24]} 32. Ne5 {[%clk 0:00:03]}  Rf8 {[%clk 0:00:17]} 33. axb4 {[%clk 0:00:03]}  Bb5 {[%clk 0:00:18]} 34. Qd2 {[%clk 0:00:02]}  Rf6 {[%clk 0:00:17]} 35. Rxa7 {[%clk 0:00:03]}  g5 {[%clk 0:00:10]} 36. Ra8+ {[%clk 0:00:04]}  Kg7 {[%clk 0:00:10]} 37. Ra7+ {[%clk 0:00:04]}  Kg8 {[%clk 0:00:06]} 38. Ra8+ {[%clk 0:00:04]}  Rf8 {[%clk 0:00:03]} 39. Rxf8+ {[%clk 0:00:05]}  Kxf8 {[%clk 0:00:04]} 40. Rf1 {[%clk 0:00:05]}  Ke7 {[%clk 0:00:04]} 41. fxg5 {[%clk 0:00:04]}  Qh2+ {[%clk 0:00:04]} 42. Kf2 {[%clk 0:00:05]}  Qg3+ {[%clk 0:00:04]} 43. Kg1 {[%clk 0:00:05]}  Qh2+ {[%clk 0:00:05]} 44. Kf2 {[%clk 0:00:06]}  Rg3 {[%clk 0:00:05]} 45. Rg1 {[%clk 0:00:05]}  Qh4 {[%clk 0:00:06]} 46. Rh1 {[%clk 0:00:04]}  Qxg5 {[%clk 0:00:04]} 47. Rxh7+ {[%clk 0:00:03]}  Ke8 {[%clk 0:00:05]} 48. Rh8+ {[%clk 0:00:03]}  Ke7 {[%clk 0:00:05]} 49. Rh7+ {[%clk 0:00:04]}  Ke8 {[%clk 0:00:05]} 50. Kg1 {[%clk 0:00:05]}  Rxe3 {[%clk 0:00:03]} 51. Qf2 {[%clk 0:00:05]}  Rf3 {[%clk 0:00:02]} 52. Nxf3 {[%clk 0:00:04]}  exf3 {[%clk 0:00:03]} 53. Qxf3 {[%clk 0:00:05]}  Qc1+ {[%clk 0:00:01]} 54. Kh2 {[%clk 0:00:05]} 1-0


[Site "https://www.chess.com"]

[Event "Titled Tuesday Blitz February 15 Early 2022"]
[White "Samarth, J Rao"]
[Black "Vusatiuk, Vladimir"]
[WhiteFideId "46652370"]
[BlackFideId "14118610"]
[WhiteElo "1514"]
[BlackElo "2157"]
[Result "0-1"]
[Round "09"]
[TimeControl "180+1"]
[Date "2022.02.15"]
[WhiteClock "0:00:01"]
[BlackClock "0:00:07"]

1. c4 {[%clk 0:02:56]}  b5 {[%clk 0:02:56]} 2. cxb5 {[%clk 0:02:55]}  a6 {[%clk 0:02:56]} 3. bxa6 {[%clk 0:02:56]}  Bxa6 {[%clk 0:02:57]} 4. Nc3 {[%clk 0:02:54]}  g6 {[%clk 0:02:56]} 5. d4 {[%clk 0:02:54]}  Bg7 {[%clk 0:02:55]} 6. g3 {[%clk 0:02:54]}  Bb7 {[%clk 0:02:55]} 7. Nf3 {[%clk 0:02:54]}  c5 {[%clk 0:02:42]} 8. dxc5 {[%clk 0:02:51]}  Qa5 {[%clk 0:02:41]} 9. Qb3 {[%clk 0:02:41]}  Na6 {[%clk 0:02:13]} 10. Qxb7 {[%clk 0:02:33]}  Rb8 {[%clk 0:02:03]} 11. Qa7 {[%clk 0:02:06]}  Bxc3+ {[%clk 0:02:01]} 12. bxc3 {[%clk 0:02:00]}  Qxc3+ {[%clk 0:01:50]} 13. Kd1 {[%clk 0:01:50]}  Qxa1 {[%clk 0:01:44]} 14. Qxa6 {[%clk 0:01:47]}  Nf6 {[%clk 0:01:38]} 15. Qc4 {[%clk 0:01:31]}  O-O {[%clk 0:01:35]} 16. e3 {[%clk 0:01:22]}  d5 {[%clk 0:01:28]} 17. Qc2 {[%clk 0:01:19]}  Ne4 {[%clk 0:01:21]} 18. Bd3 {[%clk 0:01:18]}  Nxc5 {[%clk 0:00:55]} 19. Ke2 {[%clk 0:00:37]}  Rfc8 {[%clk 0:00:51]} 20. Ba3 {[%clk 0:00:33]}  Qxh1 {[%clk 0:00:38]} 21. Bxc5 {[%clk 0:00:33]}  Qa1 {[%clk 0:00:19]} 22. Nd2 {[%clk 0:00:23]}  Rb2 {[%clk 0:00:16]} 23. Qc3 {[%clk 0:00:09]}  Rxd2+ {[%clk 0:00:16]} 24. Qxd2 {[%clk 0:00:06]}  Rxc5 {[%clk 0:00:16]} 25. e4 {[%clk 0:00:02]}  dxe4 {[%clk 0:00:12]} 26. Bxe4 {[%clk 0:00:03]}  Qc3 {[%clk 0:00:09]} 27. Qd8+ {[%clk 0:00:02]}  Kg7 {[%clk 0:00:09]} 28. Bd3 {[%clk 0:00:01]}  Re5+ {[%clk 0:00:09]} 29. Kf3 {[%clk 0:00:01]}  e6 {[%clk 0:00:07]} 30. Kg2 {[%clk 0:00:01]}  Rd5 {[%clk 0:00:07]} 0-1


[Site "https://www.chess.com"]

[Event "Titled Tuesday Blitz February 15 Early 2022"]
[White "Sargissyan, Sargis"]
[Black "Ovezdurdyyeva, Jemal"]
[WhiteFideId "13303210"]
[BlackFideId "14001888"]
[WhiteElo "2174"]
[BlackElo "1946"]
[Result "1-0"]
[Round "09"]
[TimeControl "180+1"]
[Date "2022.02.15"]
[WhiteClock "0:00:12"]
[BlackClock "0:00:03"]

1. e4 {[%clk 0:02:17]}  d6 {[%clk 0:02:57]} 2. d4 {[%clk 0:02:17]}  Nf6 {[%clk 0:02:56]} 3. Nc3 {[%clk 0:02:17]}  g6 {[%clk 0:02:55]} 4. f4 {[%clk 0:02:07]}  c6 {[%clk 0:02:54]} 5. Nf3 {[%clk 0:02:06]}  b5 {[%clk 0:02:54]} 6. e5 {[%clk 0:02:06]}  dxe5 {[%clk 0:02:52]} 7. fxe5 {[%clk 0:02:06]}  Nd5 {[%clk 0:02:52]} 8. Nxd5 {[%clk 0:02:05]}  Qxd5 {[%clk 0:02:53]} 9. Bd3 {[%clk 0:02:03]}  Bg7 {[%clk 0:02:49]} 10. O-O {[%clk 0:02:01]}  O-O {[%clk 0:02:49]} 11. c3 {[%clk 0:01:52]}  a6 {[%clk 0:02:42]} 12. Qe1 {[%clk 0:01:49]}  Ra7 {[%clk 0:02:38]} 13. Qh4 {[%clk 0:01:49]}  c5 {[%clk 0:02:29]} 14. Bh6 {[%clk 0:01:49]}  f6 {[%clk 0:02:21]} 15. Be4 {[%clk 0:01:35]}  Qd8 {[%clk 0:02:11]} 16. Bxg7 {[%clk 0:01:24]}  Kxg7 {[%clk 0:02:08]} 17. exf6+ {[%clk 0:01:19]}  exf6 {[%clk 0:02:05]} 18. dxc5 {[%clk 0:01:17]}  f5 {[%clk 0:01:37]} 19. Qxd8 {[%clk 0:01:13]}  Rxd8 {[%clk 0:01:38]} 20. Bc2 {[%clk 0:01:14]}  Nd7 {[%clk 0:01:32]} 21. b4 {[%clk 0:01:12]}  Nf6 {[%clk 0:01:31]} 22. Rad1 {[%clk 0:01:12]}  Rad7 {[%clk 0:01:27]} 23. Nd4 {[%clk 0:00:50]}  Re8 {[%clk 0:01:11]} 24. c6 {[%clk 0:00:46]}  Rde7 {[%clk 0:01:03]} 25. a4 {[%clk 0:00:43]}  bxa4 {[%clk 0:00:49]} 26. Bxa4 {[%clk 0:00:43]}  Ne4 {[%clk 0:00:49]} 27. Rd3 {[%clk 0:00:40]}  Rd8 {[%clk 0:00:32]} 28. Nxf5+ {[%clk 0:00:30]}  Bxf5 {[%clk 0:00:28]} 29. Rxd8 {[%clk 0:00:31]}  Nxc3 {[%clk 0:00:28]} 30. Rd7 {[%clk 0:00:22]}  Kf6 {[%clk 0:00:11]} 31. c7 {[%clk 0:00:14]}  Re8 {[%clk 0:00:09]} 32. Rd8 {[%clk 0:00:14]}  Re2 {[%clk 0:00:03]} 33. c8=Q {[%clk 0:00:12]} 1-0


[Site "https://www.chess.com"]

[Event "Titled Tuesday Blitz February 15 Early 2022"]
[White "Sargsyan, Anna M."]
[Black "Hirneise, Jens"]
[WhiteFideId "13308130"]
[BlackFideId "24614734"]
[WhiteElo "2271"]
[BlackElo "2323"]
[Result "1-0"]
[Round "09"]
[TimeControl "180+1"]
[Date "2022.02.15"]
[WhiteClock "0:01:37"]
[BlackClock "0:00:45"]

1. d4 {[%clk 0:02:48]}  Nf6 {[%clk 0:02:56]} 2. c4 {[%clk 0:02:47]}  c5 {[%clk 0:02:50]} 3. d5 {[%clk 0:02:43]}  e6 {[%clk 0:02:48]} 4. Nc3 {[%clk 0:02:42]}  exd5 {[%clk 0:02:44]} 5. cxd5 {[%clk 0:02:43]}  g6 {[%clk 0:02:43]} 6. e4 {[%clk 0:02:42]}  d6 {[%clk 0:02:40]} 7. f4 {[%clk 0:02:42]}  Bg7 {[%clk 0:02:37]} 8. Bb5+ {[%clk 0:02:42]}  Nfd7 {[%clk 0:02:35]} 9. a4 {[%clk 0:02:42]}  O-O {[%clk 0:02:35]} 10. Nf3 {[%clk 0:02:43]}  Na6 {[%clk 0:02:33]} 11. O-O {[%clk 0:02:43]}  Nc7 {[%clk 0:02:33]} 12. Bd3 {[%clk 0:02:40]}  a6 {[%clk 0:02:26]} 13. Kh1 {[%clk 0:02:39]}  Rb8 {[%clk 0:02:26]} 14. Bc2 {[%clk 0:02:32]}  b5 {[%clk 0:02:25]} 15. axb5 {[%clk 0:02:32]}  Nxb5 {[%clk 0:02:20]} 16. Nxb5 {[%clk 0:02:29]}  axb5 {[%clk 0:02:21]} 17. Rb1 {[%clk 0:02:27]}  Ra8 {[%clk 0:02:11]} 18. Be3 {[%clk 0:02:27]}  Re8 {[%clk 0:02:03]} 19. Qd2 {[%clk 0:02:17]}  Qa5 {[%clk 0:01:53]} 20. Qf2 {[%clk 0:02:16]}  Nf6 {[%clk 0:01:40]} 21. Bd2 {[%clk 0:02:02]}  Qa2 {[%clk 0:01:36]} 22. Rfe1 {[%clk 0:02:01]}  Qc4 {[%clk 0:01:27]} 23. Rbc1 {[%clk 0:01:53]}  Qa2 {[%clk 0:01:12]} 24. e5 {[%clk 0:01:38]}  Nxd5 {[%clk 0:01:09]} 25. exd6 {[%clk 0:01:38]}  Be6 {[%clk 0:01:01]} 26. f5 {[%clk 0:01:38]}  gxf5 {[%clk 0:00:55]} 27. Ng5 {[%clk 0:01:38]}  Qxb2 {[%clk 0:00:53]} 28. Bxf5 {[%clk 0:01:37]}  Bxf5 {[%clk 0:00:49]} 29. Qxf5 {[%clk 0:01:36]}  Qxd2 {[%clk 0:00:47]} 30. Qxf7+ {[%clk 0:01:36]}  Kh8 {[%clk 0:00:45]} 31. Rxe8+ {[%clk 0:01:37]}  Rxe8 {[%clk 0:00:45]} 32. Qxe8+ {[%clk 0:01:38]}  Bf8 {[%clk 0:00:45]} 33. Qxf8# {[%clk 0:01:37]} 1-0


[Site "https://www.chess.com"]

[Event "Titled Tuesday Blitz February 15 Early 2022"]
[White "Shtyka, Sergey"]
[Black "Shuvalova, Polina"]
[WhiteFideId "4138465"]
[BlackFideId "24171760"]
[WhiteElo "2014"]
[BlackElo "2355"]
[Result "0-1"]
[Round "09"]
[TimeControl "180+1"]
[Date "2022.02.15"]
[WhiteClock "0:00:03"]
[BlackClock "0:00:10"]

1. e4 {[%clk 0:03:00]}  c6 {[%clk 0:02:09]} 2. Nf3 {[%clk 0:03:00]}  d5 {[%clk 0:02:10]} 3. Nc3 {[%clk 0:03:00]}  Bg4 {[%clk 0:02:10]} 4. h3 {[%clk 0:03:00]}  Bxf3 {[%clk 0:02:09]} 5. Qxf3 {[%clk 0:03:01]}  e6 {[%clk 0:02:09]} 6. g3 {[%clk 0:02:58]}  Nd7 {[%clk 0:02:09]} 7. Bg2 {[%clk 0:02:58]}  Bd6 {[%clk 0:02:07]} 8. O-O {[%clk 0:02:56]}  Ne7 {[%clk 0:02:07]} 9. d4 {[%clk 0:02:56]}  O-O {[%clk 0:02:06]} 10. e5 {[%clk 0:02:53]}  Bc7 {[%clk 0:02:05]} 11. Ne2 {[%clk 0:02:53]}  c5 {[%clk 0:02:04]} 12. c3 {[%clk 0:02:54]}  Rc8 {[%clk 0:02:01]} 13. Be3 {[%clk 0:02:50]}  cxd4 {[%clk 0:01:55]} 14. cxd4 {[%clk 0:02:48]}  Nb6 {[%clk 0:01:54]} 15. b3 {[%clk 0:02:45]}  Qd7 {[%clk 0:01:51]} 16. a4 {[%clk 0:02:19]}  Bb8 {[%clk 0:01:49]} 17. Rfc1 {[%clk 0:02:17]}  Rxc1+ {[%clk 0:01:48]} 18. Rxc1 {[%clk 0:02:16]}  Rc8 {[%clk 0:01:49]} 19. Nc3 {[%clk 0:02:01]}  a6 {[%clk 0:01:46]} 20. Qd1 {[%clk 0:02:00]}  Ba7 {[%clk 0:01:43]} 21. Ne2 {[%clk 0:01:53]}  h6 {[%clk 0:01:39]} 22. Rxc8+ {[%clk 0:01:50]}  Qxc8 {[%clk 0:01:39]} 23. Qc1 {[%clk 0:01:50]}  Qxc1+ {[%clk 0:01:38]} 24. Nxc1 {[%clk 0:01:50]}  Nd7 {[%clk 0:01:38]} 25. g4 {[%clk 0:01:44]}  Nb8 {[%clk 0:01:36]} 26. Ne2 {[%clk 0:01:41]}  Nbc6 {[%clk 0:01:34]} 27. Kf1 {[%clk 0:01:38]}  Na5 {[%clk 0:01:31]} 28. Nc1 {[%clk 0:01:38]}  Nec6 {[%clk 0:01:30]} 29. Ke2 {[%clk 0:01:28]}  Bxd4 {[%clk 0:01:27]} 30. f4 {[%clk 0:01:27]}  Bb2 {[%clk 0:01:21]} 31. Nd3 {[%clk 0:01:20]}  Bc3 {[%clk 0:01:18]} 32. Nc5 {[%clk 0:01:15]}  Bd4 {[%clk 0:01:12]} 33. b4 {[%clk 0:00:13]}  Bxe3 {[%clk 0:01:06]} 34. Kxe3 {[%clk 0:00:13]}  Nxb4 {[%clk 0:01:05]} 35. f5 {[%clk 0:00:14]}  Nc4+ {[%clk 0:01:03]} 36. Kd4 {[%clk 0:00:14]}  Nc6+ {[%clk 0:01:03]} 37. Kc3 {[%clk 0:00:14]}  b6 {[%clk 0:00:47]} 38. Nxa6 {[%clk 0:00:12]}  N4xe5 {[%clk 0:00:46]} 39. fxe6 {[%clk 0:00:12]}  fxe6 {[%clk 0:00:46]} 40. Nc7 {[%clk 0:00:06]}  Kf7 {[%clk 0:00:46]} 41. Na8 {[%clk 0:00:06]}  Nd7 {[%clk 0:00:45]} 42. h4 {[%clk 0:00:06]}  Ke7 {[%clk 0:00:45]} 43. g5 {[%clk 0:00:06]}  hxg5 {[%clk 0:00:44]} 44. hxg5 {[%clk 0:00:07]}  Kd6 {[%clk 0:00:44]} 45. Bf1 {[%clk 0:00:06]}  e5 {[%clk 0:00:36]} 46. Bh3 {[%clk 0:00:06]}  d4+ {[%clk 0:00:33]} 47. Kd2 {[%clk 0:00:07]}  Ncb8 {[%clk 0:00:29]} 48. Kd3 {[%clk 0:00:06]}  Nc5+ {[%clk 0:00:28]} 49. Kc4 {[%clk 0:00:06]}  Nbd7 {[%clk 0:00:22]} 50. Kb4 {[%clk 0:00:04]}  e4 {[%clk 0:00:20]} 51. Kc4 {[%clk 0:00:04]}  d3 {[%clk 0:00:20]} 52. Kc3 {[%clk 0:00:03]}  Kc6 {[%clk 0:00:19]} 53. Bf5 {[%clk 0:00:02]}  Ne5 {[%clk 0:00:18]} 54. a5 {[%clk 0:00:01]}  bxa5 {[%clk 0:00:17]} 55. g6 {[%clk 0:00:01]}  Kb7 {[%clk 0:00:17]} 56. Kd4 {[%clk 0:00:01]}  Kxa8 {[%clk 0:00:15]} 57. Kxe5 {[%clk 0:00:01]}  d2 {[%clk 0:00:15]} 58. Bg4 {[%clk 0:00:02]}  e3 {[%clk 0:00:13]} 59. Kd4 {[%clk 0:00:02]}  a4 {[%clk 0:00:08]} 60. Kxe3 {[%clk 0:00:02]}  a3 {[%clk 0:00:08]} 61. Kxd2 {[%clk 0:00:02]}  a2 {[%clk 0:00:09]} 62. Ke3 {[%clk 0:00:03]}  a1=Q {[%clk 0:00:09]} 63. Kf4 {[%clk 0:00:03]}  Qf6+ {[%clk 0:00:09]} 64. Kg3 {[%clk 0:00:03]}  Qxg6 {[%clk 0:00:09]} 65. Kh4 {[%clk 0:00:04]}  Qf6+ {[%clk 0:00:09]} 66. Kg3 {[%clk 0:00:03]}  Ne6 {[%clk 0:00:10]} 67. Bf3+ {[%clk 0:00:03]}  Kb8 {[%clk 0:00:10]} 68. Kf2 {[%clk 0:00:03]}  Kc7 {[%clk 0:00:10]} 69. Ke3 {[%clk 0:00:04]}  Qe5+ {[%clk 0:00:11]} 70. Kd2 {[%clk 0:00:04]}  Nd4 {[%clk 0:00:11]} 71. Bd1 {[%clk 0:00:04]}  g5 {[%clk 0:00:10]} 72. Kc3 {[%clk 0:00:04]}  Kd6 {[%clk 0:00:10]} 73. Kb2 {[%clk 0:00:05]}  Nb5+ {[%clk 0:00:09]} 74. Kb1 {[%clk 0:00:05]}  Nc3+ {[%clk 0:00:09]} 75. Ka1 {[%clk 0:00:03]}  Nxd1+ {[%clk 0:00:10]} 76. Kb1 {[%clk 0:00:03]}  Qb2# {[%clk 0:00:10]} 0-1


[Site "https://www.chess.com"]

[Event "Titled Tuesday Blitz February 15 Early 2022"]
[White "Shukhman, Anna"]
[Black "Nurmanova, Alua"]
[WhiteFideId "54180058"]
[BlackFideId "13729390"]
[WhiteElo "1628"]
[BlackElo "1851"]
[Result "1-0"]
[Round "09"]
[TimeControl "180+1"]
[Date "2022.02.15"]
[WhiteClock "0:00:19"]
[BlackClock "0:00:02"]

1. e4 {[%clk 0:03:00]}  c5 {[%clk 0:02:59]} 2. Nf3 {[%clk 0:02:59]}  d6 {[%clk 0:02:59]} 3. d4 {[%clk 0:02:58]}  cxd4 {[%clk 0:03:00]} 4. Nxd4 {[%clk 0:02:59]}  Nf6 {[%clk 0:03:01]} 5. Nc3 {[%clk 0:02:59]}  a6 {[%clk 0:03:01]} 6. h4 {[%clk 0:02:51]}  e5 {[%clk 0:02:50]} 7. Nb3 {[%clk 0:02:50]}  Be6 {[%clk 0:02:45]} 8. f4 {[%clk 0:02:49]}  Nc6 {[%clk 0:02:41]} 9. f5 {[%clk 0:02:48]}  Bxb3 {[%clk 0:02:24]} 10. axb3 {[%clk 0:02:47]}  Be7 {[%clk 0:02:25]} 11. Bg5 {[%clk 0:02:40]}  Nd7 {[%clk 0:02:19]} 12. Bxe7 {[%clk 0:02:38]}  Qxe7 {[%clk 0:02:20]} 13. Nd5 {[%clk 0:02:36]}  Qd8 {[%clk 0:02:20]} 14. Qg4 {[%clk 0:02:29]}  O-O {[%clk 0:02:00]} 15. Bd3 {[%clk 0:02:22]}  Nf6 {[%clk 0:01:54]} 16. Nxf6+ {[%clk 0:02:21]}  Qxf6 {[%clk 0:01:54]} 17. c3 {[%clk 0:02:15]}  Rfd8 {[%clk 0:01:52]} 18. Qf3 {[%clk 0:02:10]}  Qh6 {[%clk 0:01:46]} 19. g4 {[%clk 0:02:06]}  Qf4 {[%clk 0:01:44]} 20. Ke2 {[%clk 0:01:59]}  Qxf3+ {[%clk 0:01:39]} 21. Kxf3 {[%clk 0:01:58]}  Ne7 {[%clk 0:01:38]} 22. Bc4 {[%clk 0:01:51]}  Rac8 {[%clk 0:01:30]} 23. Rad1 {[%clk 0:01:44]}  Rc5 {[%clk 0:01:26]} 24. Rhe1 {[%clk 0:01:29]}  b5 {[%clk 0:01:19]} 25. Bd5 {[%clk 0:01:29]}  Nxd5 {[%clk 0:01:19]} 26. exd5 {[%clk 0:01:27]}  a5 {[%clk 0:01:14]} 27. Ke4 {[%clk 0:01:21]}  a4 {[%clk 0:01:11]} 28. bxa4 {[%clk 0:00:53]}  bxa4 {[%clk 0:01:12]} 29. Ra1 {[%clk 0:00:49]}  Rc4+ {[%clk 0:01:12]} 30. Kf3 {[%clk 0:00:49]}  Rb8 {[%clk 0:01:04]} 31. Re4 {[%clk 0:00:47]}  Rcc8 {[%clk 0:00:59]} 32. Rexa4 {[%clk 0:00:44]}  Rxb2 {[%clk 0:00:54]} 33. Ra8 {[%clk 0:00:43]}  Rbb8 {[%clk 0:00:55]} 34. Rxb8 {[%clk 0:00:43]}  Rxb8 {[%clk 0:00:56]} 35. Ra6 {[%clk 0:00:41]}  Rd8 {[%clk 0:00:56]} 36. c4 {[%clk 0:00:40]}  Kf8 {[%clk 0:00:56]} 37. Ke4 {[%clk 0:00:39]}  f6 {[%clk 0:00:55]} 38. Ra7 {[%clk 0:00:38]}  Rc8 {[%clk 0:00:54]} 39. Kd3 {[%clk 0:00:38]}  e4+ {[%clk 0:00:37]} 40. Kd4 {[%clk 0:00:37]}  e3 {[%clk 0:00:37]} 41. Ra2 {[%clk 0:00:36]}  Kf7 {[%clk 0:00:22]} 42. Re2 {[%clk 0:00:32]}  h5 {[%clk 0:00:19]} 43. gxh5 {[%clk 0:00:29]}  Rh8 {[%clk 0:00:19]} 44. Rxe3 {[%clk 0:00:29]}  Rxh5 {[%clk 0:00:19]} 45. Re6 {[%clk 0:00:28]}  Rxf5 {[%clk 0:00:12]} 46. Rxd6 {[%clk 0:00:28]}  Rf4+ {[%clk 0:00:13]} 47. Kc3 {[%clk 0:00:22]}  Rxh4 {[%clk 0:00:12]} 48. Rd7+ {[%clk 0:00:22]}  Kg6 {[%clk 0:00:07]} 49. c5 {[%clk 0:00:22]}  Rh3+ {[%clk 0:00:05]} 50. Kc4 {[%clk 0:00:22]}  f5 {[%clk 0:00:05]} 51. c6 {[%clk 0:00:22]}  Rh1 {[%clk 0:00:05]} 52. c7 {[%clk 0:00:21]}  Rc1+ {[%clk 0:00:05]} 53. Kd4 {[%clk 0:00:21]}  Kg5 {[%clk 0:00:02]} 54. Rxg7+ {[%clk 0:00:19]}  Kh4 {[%clk 0:00:02]} 55. Ke5 {[%clk 0:00:19]} 1-0


[Site "https://www.chess.com"]

[Event "Titled Tuesday Blitz February 15 Early 2022"]
[White "Shvedova, Alexandra"]
[Black "Do Valle Cardoso, Lucas"]
[WhiteFideId "54154782"]
[BlackFideId "2163144"]
[WhiteElo "1920"]
[BlackElo "2357"]
[Result "1-0"]
[Round "09"]
[TimeControl "180+1"]
[Date "2022.02.15"]
[WhiteClock "0:01:03"]
[BlackClock "0:02:04"]

1. e4 {[%clk 0:03:00]}  e5 {[%clk 0:02:56]} 2. Nf3 {[%clk 0:03:00]}  Nc6 {[%clk 0:02:56]} 3. Bc4 {[%clk 0:03:00]}  Nf6 {[%clk 0:02:55]} 4. d3 {[%clk 0:03:00]}  Bc5 {[%clk 0:02:56]} 5. O-O {[%clk 0:03:00]}  d6 {[%clk 0:02:56]} 6. a4 {[%clk 0:03:00]}  a6 {[%clk 0:02:52]} 7. c3 {[%clk 0:02:59]}  Ba7 {[%clk 0:02:52]} 8. Nbd2 {[%clk 0:02:59]}  h6 {[%clk 0:02:49]} 9. Re1 {[%clk 0:02:57]}  g5 {[%clk 0:02:48]} 10. b4 {[%clk 0:02:46]}  g4 {[%clk 0:02:47]} 11. Nh4 {[%clk 0:02:46]}  Nxe4 {[%clk 0:02:48]} 12. Nxe4 {[%clk 0:02:46]}  Qxh4 {[%clk 0:02:48]} 13. d4 {[%clk 0:02:46]}  Qe7 {[%clk 0:02:43]} 14. b5 {[%clk 0:02:32]}  Na5 {[%clk 0:02:42]} 15. Bd3 {[%clk 0:02:19]}  h5 {[%clk 0:02:26]} 16. dxe5 {[%clk 0:01:51]}  d5 {[%clk 0:02:20]} 17. Nf6+ {[%clk 0:01:48]}  Kf8 {[%clk 0:02:21]} 18. Ba3 {[%clk 0:01:47]}  Bc5 {[%clk 0:02:21]} 19. Nxd5 {[%clk 0:01:45]}  Bxa3 {[%clk 0:02:21]} 20. Nxe7 {[%clk 0:01:44]}  Bxe7 {[%clk 0:02:22]} 21. Be4 {[%clk 0:01:27]}  Rb8 {[%clk 0:02:18]} 22. Bd5 {[%clk 0:01:15]}  b6 {[%clk 0:02:11]} 23. e6 {[%clk 0:01:13]}  axb5 {[%clk 0:02:07]} 24. exf7 {[%clk 0:01:11]}  bxa4 {[%clk 0:02:05]} 25. Qd4 {[%clk 0:01:08]}  Rh7 {[%clk 0:02:04]} 26. Qe4 {[%clk 0:01:03]}  Rg7 {[%clk 0:02:04]} 27. Qxe7# {[%clk 0:01:03]} 1-0


[Site "https://www.chess.com"]